fUSD/lending_fUSD_20240620
["ID","MTS","AMOUNT","RATE_DAILY","PERIOD"]
[329933359,1718843449429,-150.0,0.00013837,2]
[329933360,1718843449440,-150.0,0.0001384,2]
[329933361,1718843449449,-150.0,0.00013844,2]
[329933362,1718843449459,-150.0,0.00013846,2]
[329933363,1718843449469,-150.0,0.00013847,2]
[329933364,1718843449478,-150.0,0.00013851,2]
[329933365,1718843449488,-150.0,0.00013851,2]
[329933366,1718843449497,-150.0,0.00013852,2]
[329933367,1718843449506,-150.0,0.00013855,2]
[329933368,1718843449516,-150.0,0.00013859,2]
[329933369,1718843449525,-150.0,0.00013865,2]
[329933370,1718843449535,-4656.2295839,0.00013866,2]
[329933371,1718843449544,-150.0,0.0001387,2]
[329933372,1718843449562,-150.0,0.00013871,2]
[329933373,1718843449573,-150.0,0.00013874,2]
[329933374,1718843449583,-150.0,0.00013879,2]
[329933375,1718843449593,-150.0,0.00013884,2]
[329933376,1718843449603,-200.0,0.00013888,2]
[329933377,1718843449613,-1000.0,0.00013888,2]
[329933378,1718843449623,-200.0,0.00013888,2]
[329933379,1718843449633,-200.0,0.00013888,2]
[329933380,1718843449645,-150.0,0.00013889,2]
[329933381,1718843449657,-150.0,0.0001389,2]
[329933382,1718843449667,-150.0,0.0001389,2]
[329933383,1718843449677,-219.94,0.0001389,2]
[329933384,1718843449689,-150.0,0.00013893,2]
[329933385,1718843449700,-1168.3030704,0.00013899,5]
[329933386,1718843449710,-367.5,0.00013899,2]
[329933387,1718843449720,-753.4814338,0.000139,2]
[329933388,1718843449730,-100642.50613538,0.000139,2]
[329933389,1718843449741,-150.0,0.000139,2]
[329933390,1718843449751,-864.5217921,0.000139,2]
[329933391,1718843449761,-4656.2295839,0.000139,2]
[329933392,1718843449771,-150.0,0.00013902,2]
[329933393,1718843449781,-150.0,0.00013904,2]
[329933394,1718843449792,-150.0,0.00013906,2]
[329933395,1718843449802,-150.0,0.00013909,2]
[329933396,1718843449812,-150.0,0.00013909,2]
[329933397,1718843449822,-150.0,0.00013909,2]
[329933398,1718843449832,-150.0,0.00013911,2]
[329933399,1718843449842,-150.0,0.00013913,2]
[329933400,1718843449852,-150.0,0.00013914,2]
[329933401,1718843449862,-150.0,0.00013916,2]
[329933402,1718843449872,-150.0,0.00013917,2]
[329933403,1718843449882,-150.0,0.00013918,2]
[329933404,1718843449892,-150.0,0.00013922,2]
[329933405,1718843449902,-150.0,0.00013923,2]
[329933406,1718843449912,-150.0,0.00013925,2]
[329933407,1718843449922,-150.0,0.00013926,2]
[329933408,1718843449932,-150.0,0.00013929,2]
[329933409,1718843449942,-150.0,0.0001393,2]
[329933410,1718843449952,-150.0,0.00013931,2]
[329933411,1718843449962,-150.0,0.00013931,2]
[329933412,1718843449972,-150.0,0.00013938,2]
[329933413,1718843449982,-150.0,0.00013939,2]
[329933414,1718843449991,-500.0,0.00013944,2]
[329933415,1718843450002,-150.0,0.00013945,2]
[329933416,1718843450011,-500.0,0.00013949,2]
[329933417,1718843450021,-500.0,0.00013949,2]
[329933418,1718843450031,-150.0,0.00013951,2]
[329933419,1718843450041,-150.0,0.00013953,2]
[329933420,1718843450050,-150.0,0.00013954,2]
[329933421,1718843450060,-150.0,0.00013956,2]
[329933422,1718843450072,-150.0,0.00013964,2]
[329933423,1718843450082,-150.0,0.0001397,2]
[329933424,1718843450091,-500.0,0.00013971,2]
[329933425,1718843450101,-500.0,0.00013971,2]
[329933426,1718843450110,-500.0,0.00013971,2]
[329933427,1718843450120,-500.0,0.00013971,2]
[329933428,1718843450130,-245.46957316,0.00013971,2]
[329933429,1718843450140,-531.07,0.00013972,2]
[329933430,1718843450149,-500.0,0.00013972,2]
[329933431,1718843450159,-637.74,0.00013972,2]
[329933432,1718843450168,-500.0,0.00013972,2]
[329933433,1718843450178,-604.32,0.00013972,2]
[329933434,1718843450190,-500.0,0.00013972,2]
[329933435,1718843450199,-500.0,0.00013972,2]
[329933436,1718843450209,-314.0458746,0.00013972,2]
[329933437,1718843450218,-500.0,0.00013972,2]
[329933438,1718843450228,-500.0,0.00013972,2]
[329933439,1718843450237,-500.0,0.00013972,2]
[329933440,1718843450246,-500.0,0.00013972,2]
[329933441,1718843450256,-500.0,0.00013972,2]
[329933442,1718843450265,-500.0,0.00013972,2]
[329933443,1718843450275,-500.0,0.00013972,2]
[329933444,1718843450284,-500.0,0.00013972,2]
[329933445,1718843450294,-500.0,0.00013972,2]
[329933446,1718843450303,-500.0,0.00013972,2]
[329933447,1718843450313,-500.0,0.00013972,2]
[329933448,1718843450323,-500.0,0.00013972,2]
[329933449,1718843450332,-500.0,0.00013972,2]
[329933450,1718843450342,-500.0,0.00013972,2]
[329933451,1718843450352,-318.13142128,0.00013972,2]
[329933452,1718843450361,-577.97,0.00013972,2]
[329933453,1718843450371,-418.13453706,0.00013972,2]
[329933454,1718843450380,-500.0,0.00013972,2]
[329933455,1718843450390,-500.0,0.00013972,2]
[329933456,1718843450400,-500.0,0.00013972,2]
[329933457,1718843450410,-500.0,0.00013972,2]
[329933458,1718843450419,-1363.93,0.00013972,2]
[329933459,1718843450429,-500.0,0.00013972,2]
[329933460,1718843450440,-500.0,0.00013972,2]
[329933461,1718843450451,-548.88,0.00013972,2]
[329933462,1718843450462,-500.0,0.00013972,2]
[329933463,1718843450472,-669.7,0.00013972,2]
[329933464,1718843450482,-500.0,0.00013972,2]
[329933465,1718843450493,-500.0,0.00013972,2]
[329933466,1718843450504,-500.0,0.00013972,2]
[329933467,1718843450513,-715.3,0.00013972,2]
[329933468,1718843450524,-500.0,0.00013972,2]
[329933469,1718843450533,-500.0,0.00013972,2]
[329933470,1718843450544,-500.0,0.00013972,2]
[329933471,1718843450553,-500.0,0.00013972,2]
[329933472,1718843450562,-500.0,0.00013972,2]
[329933473,1718843450572,-695.58,0.00013972,2]
[329933474,1718843450582,-500.0,0.00013972,2]
[329933475,1718843450592,-500.0,0.00013972,2]
[329933476,1718843450602,-608.16,0.00013972,2]
[329933477,1718843450611,-500.0,0.00013972,2]
[329933478,1718843450621,-500.0,0.00013972,2]
[329933479,1718843450631,-500.0,0.00013972,2]
[329933480,1718843450643,-500.0,0.00013972,2]
[329933481,1718843450657,-500.0,0.00013972,2]
[329933482,1718843450669,-500.0,0.00013972,2]
[329933483,1718843450679,-500.0,0.00013972,2]
[329933484,1718843450690,-500.0,0.00013972,2]
[329933485,1718843450700,-660.08,0.00013972,2]
[329933486,1718843450710,-500.0,0.00013972,2]
[329933487,1718843450720,-500.0,0.00013972,2]
[329933488,1718843450730,-556.86,0.00013972,2]
[329933489,1718843450740,-500.0,0.00013972,2]
[329933490,1718843450750,-500.0,0.00013972,2]
[329933491,1718843450759,-500.0,0.00013972,2]
[329933492,1718843450769,-500.0,0.00013972,2]
[329933493,1718843450778,-500.0,0.00013972,2]
[329933494,1718843450788,-500.0,0.00013972,2]
[329933495,1718843450798,-500.0,0.00013972,2]
[329933496,1718843450808,-500.0,0.00013972,2]
[329933497,1718843450819,-500.0,0.00013972,2]
[329933498,1718843450829,-500.0,0.00013972,2]
[329933499,1718843450838,-500.0,0.00013972,2]
[329933500,1718843450848,-863.0,0.00013972,2]
[329933501,1718843450858,-616.5,0.00013972,2]
[329933502,1718843450867,-886.02,0.00013972,2]
[329933503,1718843450877,-519.25,0.00013972,2]
[329933504,1718843450887,-500.0,0.00013972,2]
[329933505,1718843450896,-500.0,0.00013972,2]
[329933506,1718843450906,-574.6,0.00013972,2]
[329933507,1718843450915,-1580.89,0.00013972,2]
[329933508,1718843450925,-501.05,0.00013972,2]
[329933509,1718843450935,-691.37,0.00013972,2]
[329933510,1718843450946,-507.24,0.00013972,2]
[329933511,1718843450955,-1358.0,0.00013972,2]
[329933512,1718843450965,-500.0,0.00013972,2]
[329933513,1718843450974,-500.0,0.00013972,2]
[329933514,1718843450984,-500.0,0.00013972,2]
[329933515,1718843450994,-500.0,0.00013972,2]
[329933516,1718843451003,-500.0,0.00013972,2]
[329933517,1718843451013,-500.0,0.00013972,2]
[329933518,1718843451023,-500.0,0.00013972,2]
[329933519,1718843451032,-1290.5,0.00013972,2]
[329933520,1718843451042,-667.39,0.00013972,2]
[329933521,1718843451052,-744.22,0.00013972,2]
[329933522,1718843451170,-673.31,0.00013972,2]
[329933523,1718843451182,-500.0,0.00013972,2]
[329933524,1718843451191,-500.0,0.00013972,2]
[329933525,1718843451201,-760.32,0.00013972,2]
[329933526,1718843451210,-797.05,0.00013972,2]
[329933527,1718843451220,-503.31,0.00013972,2]
[329933528,1718843451229,-1041.82,0.00013972,2]
[329933529,1718843451238,-909.29,0.00013972,2]
[329933530,1718843451248,-500.0,0.00013972,2]
[329933531,1718843451258,-727.92,0.00013972,2]
[329933532,1718843451267,-1522.43,0.00013972,2]
[329933533,1718843451276,-588.17,0.00013972,2]
[329933534,1718843451286,-1122.71,0.00013972,2]
[329933535,1718843451295,-663.94,0.00013972,2]
[329933536,1718843451304,-533.19,0.00013972,2]
[329933537,1718843451313,-500.0,0.00013972,2]
[329933538,1718843451323,-500.0,0.00013972,2]
[329933539,1718843451333,-645.26,0.00013972,2]
[329933540,1718843451343,-500.0,0.00013972,2]
[329933541,1718843451355,-741.8,0.00013972,2]
[329933542,1718843451366,-549.34,0.00013972,2]
[329933543,1718843451376,-500.0,0.00013972,2]
[329933544,1718843451386,-500.0,0.00013972,2]
[329933545,1718843451396,-560.11,0.00013972,2]
[329933546,1718843451407,-1385.9,0.00013972,2]
[329933547,1718843451417,-500.0,0.00013972,2]
[329933548,1718843451427,-759.16,0.00013972,2]
[329933549,1718843451438,-192.01781664,0.00013972,2]
[329933550,1718843451447,-500.0,0.00013972,2]
[329933551,1718843451456,-893.4,0.00013972,2]
[329933552,1718843451464,-500.0,0.00013972,2]
[329933553,1718843451474,-968.74946065,0.00013972,2]
[329933554,1718843451497,-111.05053935,0.00013972,2]
[329933555,1718843451507,-482.44376689,0.00013972,2]
[329933556,1718843451519,-906.50569376,0.00013972,2]
[329933557,1718843451532,-101.75053935,0.00013972,2]
[329933558,1718843451541,-662.14178194,0.00013972,2]
[329933559,1718843451554,-35.77821806,0.00013972,2]
[329933560,1718843451564,-1094.19,0.00013972,2]
[329933561,1718843451574,-500.0,0.00013972,2]
[329933562,1718843451584,-684.6,0.00013972,2]
[329933563,1718843451595,-500.0,0.00013972,2]
[329933564,1718843451604,-1220.18,0.00013972,2]
[329933565,1718843451614,-500.0,0.00013972,2]
[329933566,1718843451623,-864.7741097,0.00013972,2]
[329933567,1718843451638,-76.9958903,0.00013972,2]
[329933568,1718843451650,-500.0,0.00013972,2]
[329933569,1718843451659,-500.0,0.00013972,2]
[329933570,1718843451670,-561.53,0.00013972,2]
[329933571,1718843451683,-620.31,0.00013972,2]
[329933572,1718843451692,-1063.12,0.00013972,2]
[329933573,1718843451701,-666.26,0.00013972,2]
[329933574,1718843451711,-500.0,0.00013972,2]
[329933575,1718843451722,-1105.36,0.00013972,2]
[329933576,1718843451734,-747.91,0.00013972,2]
[329933577,1718843451744,-1004.78,0.00013972,2]
[329933578,1718843451755,-714.83,0.00013972,2]
[329933579,1718843451765,-520.22,0.00013972,2]
[329933580,1718843451774,-615.38,0.00013972,2]
[329933581,1718843451786,-620.12,0.00013972,2]
[329933582,1718843451796,-500.0,0.00013972,2]
[329933583,1718843451806,-1139.77,0.00013972,2]
[329933584,1718843451816,-500.0,0.00013972,2]
[329933585,1718843451826,-567.63,0.00013972,2]
[329933586,1718843451835,-782.45,0.00013972,2]
[329933587,1718843451845,-1777.58,0.00013972,2]
[329933588,1718843451855,-500.0,0.00013972,2]
[329933589,1718843451864,-1087.49,0.00013972,2]
[329933590,1718843451874,-500.0,0.00013972,2]
[329933591,1718843451884,-500.0,0.00013972,2]
[329933592,1718843451895,-500.0,0.00013972,2]
[329933593,1718843451905,-500.0,0.00013972,2]
[329933594,1718843451915,-798.05,0.00013972,2]
[329933595,1718843451926,-500.0,0.00013972,2]
[329933596,1718843451938,-500.0,0.00013972,2]
[329933597,1718843451947,-500.0,0.00013972,2]
[329933598,1718843451956,-500.0,0.00013972,2]
[329933599,1718843451965,-500.0,0.00013972,2]
[329933600,1718843451974,-1177.19,0.00013972,2]
[329933601,1718843451983,-715.42,0.00013972,2]
[329933602,1718843451992,-507.05,0.00013972,2]
[329933603,1718843452001,-1280.47,0.00013972,2]
[329933604,1718843452010,-629.26,0.00013972,2]
[329933605,1718843452020,-500.0,0.00013972,2]
[329933606,1718843452029,-500.0,0.00013972,2]
[329933607,1718843452038,-1624.91,0.00013972,2]
[329933608,1718843452047,-500.0,0.00013972,2]
[329933609,1718843452056,-500.0,0.00013972,2]
[329933610,1718843452068,-1558.01,0.00013972,2]
[329933611,1718843452077,-500.0,0.00013972,2]
[329933612,1718843452088,-1503.02,0.00013972,2]
[329933613,1718843452099,-870.25,0.00013972,2]
[329933614,1718843452109,-753.48,0.00013972,2]
[329933615,1718843452119,-711.06,0.00013972,2]
[329933616,1718843452129,-505.18,0.00013972,2]
[329933617,1718843452139,-500.0,0.00013972,2]
[329933618,1718843452148,-500.0,0.00013972,2]
[329933619,1718843452159,-500.0,0.00013972,2]
[329933620,1718843452168,-992.22694711,0.00013972,2]
[329933621,1718843452186,-371.36305289,0.00013972,2]
[329933622,1718843452195,-1001.95,0.00013972,2]
[329933623,1718843452204,-500.0,0.00013972,2]
[329933624,1718843452213,-500.0,0.00013972,2]
[329933625,1718843452222,-691.79,0.00013972,2]
[329933626,1718843452231,-500.0,0.00013972,2]
[329933627,1718843452241,-500.0,0.00013972,2]
[329933628,1718843452252,-527.17,0.00013972,2]
[329933629,1718843452261,-541.8,0.00013972,2]
[329933630,1718843452270,-977.35,0.00013972,2]
[329933631,1718843452279,-500.0,0.00013972,2]
[329933632,1718843452289,-500.0,0.00013972,2]
[329933633,1718843452297,-500.0,0.00013972,2]
[329933634,1718843452306,-1156.43,0.00013972,2]
[329933635,1718843452316,-940.28,0.00013972,2]
[329933636,1718843452325,-500.0,0.00013972,2]
[329933637,1718843452334,-500.0,0.00013972,2]
[329933638,1718843452344,-947.88,0.00013972,2]
[329933639,1718843452353,-500.0,0.00013972,2]
[329933640,1718843452362,-1040.56,0.00013972,2]
[329933641,1718843452371,-500.0,0.00013972,2]
[329933642,1718843452380,-616.94,0.00013972,2]
[329933643,1718843452390,-455.67079189,0.00013972,2]
[329933644,1718843452399,-500.0,0.00013972,2]
[329933645,1718843452408,-500.0,0.00013972,2]
[329933646,1718843452417,-2584.52,0.00013972,2]
[329933647,1718843452427,-500.0,0.00013972,2]
[329933648,1718843452436,-500.0,0.00013972,2]
[329933649,1718843452445,-534.91,0.00013972,2]
[329933650,1718843452455,-500.0,0.00013972,2]
[329933651,1718843452464,-519.04,0.00013972,2]
[329933652,1718843452473,-1219.52,0.00013972,2]
[329933653,1718843452482,-511.3,0.00013972,2]
[329933654,1718843452491,-853.37,0.00013972,2]
[329933655,1718843452500,-500.0,0.00013972,2]
[329933656,1718843452509,-500.0,0.00013972,2]
[329933657,1718843452518,-699.02,0.00013972,2]
[329933658,1718843452527,-614.99,0.00013972,2]
[329933659,1718843452536,-805.25,0.00013972,2]
[329933660,1718843452545,-918.83,0.00013972,2]
[329933661,1718843452554,-808.2,0.00013972,2]
[329933662,1718843452563,-544.32,0.00013972,2]
[329933663,1718843452572,-783.01,0.00013972,2]
[329933664,1718843452582,-500.0,0.00013972,2]
[329933665,1718843452591,-785.67,0.00013972,2]
[329933666,1718843452599,-500.0,0.00013972,2]
[329933667,1718843452608,-869.23,0.00013972,2]
[329933668,1718843452617,-1128.26,0.00013972,2]
[329933669,1718843452626,-978.78,0.00013972,2]
[329933670,1718843452636,-500.0,0.00013972,2]
[329933671,1718843452646,-878.3,0.00013972,2]
[329933672,1718843452657,-749.69,0.00013972,2]
[329933673,1718843452666,-500.0,0.00013972,2]
[329933674,1718843452676,-500.0,0.00013972,2]
[329933675,1718843452688,-1571.91,0.00013972,2]
[329933676,1718843452697,-906.43,0.00013972,2]
[329933677,1718843452706,-500.0,0.00013972,2]
[329933678,1718843452715,-838.25,0.00013972,2]
[329933679,1718843452726,-1067.03,0.00013972,2]
[329933680,1718843452736,-655.22,0.00013972,2]
[329933681,1718843452745,-1260.29,0.00013972,2]
[329933682,1718843452755,-500.0,0.00013972,2]
[329933683,1718843452764,-500.0,0.00013972,2]
[329933684,1718843452773,-500.0,0.00013972,2]
[329933685,1718843452782,-500.0,0.00013972,2]
[329933686,1718843452791,-500.0,0.00013972,2]
[329933687,1718843452801,-1174.45,0.00013972,2]
[329933688,1718843452810,-500.0,0.00013972,2]
[329933689,1718843452819,-1316.75,0.00013972,2]
[329933690,1718843452828,-784.07,0.00013972,2]
[329933691,1718843452836,-640.71,0.00013972,2]
[329933692,1718843452846,-900.89,0.00013972,2]
[329933693,1718843452855,-845.0,0.00013972,2]
[329933694,1718843452863,-500.0,0.00013972,2]
[329933695,1718843452873,-688.39,0.00013972,2]
[329933696,1718843452882,-780.04,0.00013972,2]
[329933697,1718843452890,-500.0,0.00013972,2]
[329933698,1718843452900,-665.67,0.00013972,2]
[329933699,1718843452909,-500.0,0.00013972,2]
[329933700,1718843452919,-317.78911024,0.00013972,2]
[329933701,1718843452927,-616.88,0.00013972,2]
[329933702,1718843452938,-500.0,0.00013972,2]
[329933703,1718843452947,-817.86,0.00013972,2]
[329933704,1718843452956,-500.0,0.00013972,2]
[329933705,1718843452965,-500.0,0.00013972,2]
[329933706,1718843452974,-645.42,0.00013972,2]
[329933707,1718843452983,-500.0,0.00013972,2]
[329933708,1718843452991,-903.78,0.00013972,2]
[329933709,1718843453000,-531.28,0.00013972,2]
[329933710,1718843453010,-500.0,0.00013972,2]
[329933711,1718843453019,-1491.99,0.00013972,2]
[329933712,1718843453028,-854.36,0.00013972,2]
[329933713,1718843453037,-609.69,0.00013972,2]
[329933714,1718843453046,-500.0,0.00013972,2]
[329933715,1718843453055,-1251.35,0.00013972,2]
[329933716,1718843453064,-1200.6,0.00013972,2]
[329933717,1718843453073,-521.87,0.00013972,2]
[329933718,1718843453082,-572.0,0.00013972,2]
[329933719,1718843453091,-500.0,0.00013972,2]
[329933720,1718843453100,-500.0,0.00013972,2]
[329933721,1718843453109,-651.65,0.00013972,2]
[329933722,1718843453118,-1172.68,0.00013972,2]
[329933723,1718843453127,-683.44,0.00013972,2]
[329933724,1718843453136,-500.0,0.00013972,2]
[329933725,1718843453145,-689.04,0.00013972,2]
[329933726,1718843453154,-642.91,0.00013972,2]
[329933727,1718843453164,-500.0,0.00013972,2]
[329933728,1718843453173,-933.41,0.00013972,2]
[329933729,1718843453182,-500.0,0.00013972,2]
[329933730,1718843453193,-500.0,0.00013972,2]
[329933731,1718843453202,-500.0,0.00013972,2]
[329933732,1718843453210,-591.17,0.00013972,2]
[329933733,1718843453219,-1836.45,0.00013972,2]
[329933734,1718843453228,-1130.73,0.00013972,2]
[329933735,1718843453238,-1386.36,0.00013972,2]
[329933736,1718843453247,-978.64,0.00013972,2]
[329933737,1718843453256,-500.0,0.00013972,2]
[329933738,1718843453265,-500.0,0.00013972,2]
[329933739,1718843453274,-657.39,0.00013972,2]
[329933740,1718843453283,-500.0,0.00013972,2]
[329933741,1718843453292,-1550.52,0.00013972,2]
[329933742,1718843453301,-1523.93,0.00013972,2]
[329933743,1718843453310,-500.0,0.00013972,2]
[329933744,1718843453320,-500.0,0.00013972,2]
[329933745,1718843453329,-1054.13,0.00013972,2]
[329933746,1718843453338,-745.45,0.00013972,2]
[329933747,1718843453347,-500.0,0.00013972,2]
[329933748,1718843453356,-472.69,0.00013972,2]
[329933749,1718843453366,-1065.23,0.00013972,2]
[329933750,1718843453375,-500.0,0.00013972,2]
[329933751,1718843453384,-500.0,0.00013972,2]
[329933752,1718843453394,-500.0,0.00013972,2]
[329933753,1718843453403,-500.0,0.00013972,2]
[329933754,1718843453411,-1826.06,0.00013972,2]
[329933755,1718843453420,-1054.89,0.00013972,2]
[329933756,1718843453430,-500.0,0.00013972,2]
[329933757,1718843453441,-1109.1,0.00013972,2]
[329933758,1718843453450,-500.0,0.00013972,2]
[329933759,1718843453459,-500.0,0.00013972,2]
[329933760,1718843453468,-500.0,0.00013972,2]
[329933761,1718843453477,-668.8,0.00013972,2]
[329933762,1718843453487,-883.77,0.00013972,2]
[329933763,1718843453496,-1055.5,0.00013972,2]
[329933764,1718843453506,-500.0,0.00013972,2]
[329933765,1718843453516,-656.26,0.00013972,2]
[329933766,1718843453526,-500.0,0.00013972,2]
[329933767,1718843453535,-986.38,0.00013972,2]
[329933768,1718843453544,-13535.08,0.00013972,2]
[329933769,1718843453554,-1136.68,0.00013972,2]
[329933770,1718843453564,-1357.96,0.00013972,2]
[329933771,1718843453573,-771.33,0.00013972,2]
[329933772,1718843453583,-552.42,0.00013972,2]
[329933773,1718843453592,-502.27,0.00013972,2]
[329933774,1718843453601,-663.21,0.00013972,2]
[329933775,1718843453611,-738.7,0.00013972,2]
[329933776,1718843453620,-500.0,0.00013972,2]
[329933777,1718843453630,-1510.11,0.00013972,2]
[329933778,1718843453641,-2919.06,0.00013972,2]
[329933779,1718843453655,-564.38,0.00013972,2]
[329933780,1718843453665,-943.76,0.00013972,2]
[329933781,1718843453674,-1639.01,0.00013972,2]
[329933782,1718843453684,-15207.32,0.00013972,2]
[329933783,1718843453696,-25757.09975842,0.00013972,2]
[329933784,1718843453712,-21589.76024158,0.00013972,2]
[329933785,1718843453722,-500.0,0.00013972,2]
[329933786,1718843453733,-537.66824572,0.00013972,2]
[329933787,1718843453744,-2681.45,0.00013972,2]
[329933788,1718843453754,-731.35,0.00013972,2]
[329933789,1718843453763,-7500.55,0.00013972,2]
[329933790,1718843453773,-1240.03,0.00013972,2]
[329933791,1718843453783,-1314.74,0.00013972,2]
[329933792,1718843453792,-500.0,0.00013972,2]
[329933793,1718843453802,-500.0,0.00013972,2]
[329933794,1718843453811,-500.0,0.00013972,2]
[329933795,1718843453820,-1438.13,0.00013972,2]
[329933796,1718843453831,-2029.85,0.00013972,2]
[329933797,1718843453841,-624.5,0.00013972,2]
[329933798,1718843453850,-973.33,0.00013972,2]
[329933799,1718843453860,-626.58,0.00013972,2]
[329933800,1718843453869,-1709.25,0.00013972,2]
[329933801,1718843453878,-908.65,0.00013972,2]
[329933802,1718843453888,-1974.92,0.00013972,2]
[329933803,1718843453897,-1070.12,0.00013972,2]
[329933804,1718843453906,-500.0,0.00013972,2]
[329933805,1718843453916,-938.5,0.00013972,2]
[329933806,1718843453925,-3459.45,0.00013972,2]
[329933807,1718843453935,-1402.94,0.00013972,2]
[329933808,1718843453946,-810.86,0.00013972,2]
[329933809,1718843453956,-4118.86,0.00013972,2]
[329933810,1718843453966,-500.0,0.00013972,2]
[329933811,1718843453975,-2619.56,0.00013972,2]
[329933812,1718843453985,-1125.54,0.00013972,2]
[329933813,1718843453995,-650.38,0.00013972,2]
[329933814,1718843454005,-52064.56,0.00013972,2]
[329933815,1718843454014,-607.85,0.00013972,2]
[329933816,1718843454023,-934.84,0.00013972,2]
[329933817,1718843454032,-891.89,0.00013972,2]
[329933818,1718843454042,-776.4,0.00013972,2]
[329933819,1718843454052,-1678.61,0.00013972,2]
[329933820,1718843454061,-799.56,0.00013972,2]
[329933821,1718843454071,-3664.93,0.00013972,2]
[329933822,1718843454080,-4555.23,0.00013972,2]
[329933823,1718843454089,-515.24,0.00013972,2]
[329933824,1718843454099,-817.38,0.00013972,2]
[329933825,1718843454108,-500.0,0.00013972,2]
[329933826,1718843454117,-500.0,0.00013972,2]
[329933827,1718843454126,-2595.64,0.00013972,2]
[329933828,1718843454136,-500.0,0.00013972,2]
[329933829,1718843454145,-823.5,0.00013972,2]
[329933830,1718843454154,-2869.49,0.00013972,2]
[329933831,1718843454163,-6199.01,0.00013972,2]
[329933832,1718843454172,-14284.53,0.00013972,2]
[329933833,1718843454181,-500.0,0.00013972,2]
[329933834,1718843454192,-554.36,0.00013972,2]
[329933835,1718843454200,-500.0,0.00013972,2]
[329933836,1718843454210,-500.0,0.00013972,2]
[329933837,1718843454219,-3327.34,0.00013972,2]
[329933838,1718843454229,-1137.01,0.00013972,2]
[329933839,1718843454238,-500.0,0.00013972,2]
[329933840,1718843454247,-1332.71,0.00013972,2]
[329933841,1718843454256,-500.0,0.00013972,2]
[329933842,1718843454265,-1773.42,0.00013972,2]
[329933843,1718843454274,-500.0,0.00013972,2]
[329933844,1718843454284,-1471.15,0.00013972,2]
[329933845,1718843454293,-6669.23986331,0.00013972,2]
[329933846,1718843454886,-1755.46013669,0.00013972,2]
[329933847,1718843454897,-1202.38,0.00013972,2]
[329933848,1718843454907,-500.0,0.00013972,2]
[329933849,1718843454917,-6356.58596742,0.00013972,2]
[329933850,1718843454980,-717.81745436,0.00013972,2]
[329933851,1718843455703,-929.23217278,0.00013972,2]
[329933852,1718843456545,-500.0,0.00013698,2]
[329933853,1718843456554,-3752.82335494,0.00013972,2]
[329933854,1718843456567,-1189.54347578,0.00013972,2]
[329933855,1718843456579,-1052.13757472,0.00013972,2]
[329933856,1718843456588,-598.01,0.00013972,2]
[329933857,1718843456599,-2923.09,0.00013972,2]
[329933858,1718843456610,-559.02,0.00013972,2]